Cogmind - Beta 16.1 @@@ ROGUE MODE // 2026.02.25 @ 06:24:01 Player: MrFartsburg Result: Destroyed by Y-45 Defender with Beam Rifle Performance ------------- Evolutions (1) 500 Regions Visited (2) 400 Robots Destroyed (22) 110 Value Destroyed (421) 421 Prototype IDs (1) 20 Alien Tech Used (0) 0 Bonus (0) 0 TOTAL SCORE: 1451 Bonus ------- None Cogmind --------- Core Integrity 0/400 Matter 300/300 Energy 11/100 System Corruption 0% Temperature Cool (18) Movement Core (500) Ox9 Location -9/Materials Parts ------- > --- POWER (2) -------- (None) > --- PROPULSION (2) --- (None) > --- UTILITY (3) ------ Huge Storage Unit Weight Redist. System > --- WEAPON (2) ------- Improved Medium Laser > --- INVENTORY (25) --- Aluminum Leg Disposable Heat Sink Medium Laser Small Laser Improved Medium Laser Peak State ------------ > --- POWER ------------ Ion Engine Light Nuclear Core > --- PROPULSION ------- Aluminum Leg Improved Aluminum Leg > --- UTILITY ---------- Improved Heat Sink Huge Storage Unit Weapon Shielding > --- WEAPON ----------- Medium Laser Particle Gun > --- INVENTORY -------- Light Ion Engine Aluminum Leg Aluminum Leg Disposable Heat Sink Seismic Detector Medium Laser Small Laser Particle Gun [Rating: 16] Favorites ----------- Power Ion Engine Engine Ion Engine Power Core Light Nuclear Core Propulsion Aluminum Leg Leg Aluminum Leg Utility Improved Heat Sink Device Improved Heat Sink Storage Huge Storage Unit Processor Transport Network Coupler Protection Weapon Shielding Weapon Particle Gun Energy Gun Particle Gun Build | -11 -10 -9 ------- Run | Yrd Mat Mat Slots Evolved 2 | . . 2 Power 1 | . . 1 Propulsion . | . . . Utility 1 | . . 1 Weapon . | . . . Parts Attached 21 | 6 4 11 Power 3 | 1 . 2 Engine 2 | 1 . 1 Core 1 | . . 1 Reactor . | . . . Propulsion 5 | 2 . 3 Treads . | . . . Leg 5 | 2 . 3 Wheel . | . . . Hover . | . . . Flight . | . . . Utility 7 | 1 3 3 Device 3 | . 1 2 Storage 2 | 1 1 . Processor 1 | . 1 . Hackware . | . . . Protection 1 | . . 1 Artifact . | . . . Weapon 6 | 2 1 3 Energy Gun 6 | 2 1 3 Energy Cannon . | . . . Ballistic Gun . | . . . Ballistic Cannon . | . . . Launcher . | . . . Special Weapon . | . . . Impact Weapon . | . . . Slashing Weapon . | . . . Piercing Weapon . | . . . Special Melee Weapon . | . . . Unidentified Prototypes 1 | . . 1 Parts Lost 14 | . . 14 Power 3 | . . 3 Propulsion 4 | . . 4 Utility 3 | . . 3 Weapon 4 | . . 4 Highest Loss Streak 10 | . . 10 To Critical Strikes . | . . . Average Backups 7 | 2 7 8 Power 1 | . 1 . Propulsion 1 | 1 2 1 Utility 1 | . 1 2 Weapon 2 | . 1 3 Tool/Special . | . . . Unused Backups 5 | . 2 3 Power . | . . . Propulsion 2 | . 2 . Utility 1 | . . 1 Weapon 2 | . . 2 Tool/Special . | . . . Average Slot Usage (%) 87 | . 97 81 Engine 11 | . 14 10 Core 3 | . . 4 Leg 19 | . 28 15 Device 11 | . 11 11 Storage 12 | . 14 11 Protection 6 | . . 9 Energy Gun 22 | . 28 19 Peak Build Rating 16 | 6 11 16 Average Rating 11 | 4 10 13 On Entrance 5 | . 6 11 Avg Prop Armor Cover (%) . | . . . Naked Turns . | . . . Heaviest Build 97 | 14 91 97 Greatest Support 23 | 20 20 23 Greatest Overweight (x) 9 | 1 4 9 Average Overweight (x) 3 | . 1 5 Largest Inventory Capacity 25 | 8 25 25 Average Capacity 22 | 7 20 25 Most Carried 12 | 5 8 12 Average Carried 8 | 2 7 8 Final Capacity 25 | 8 25 25 Final Carried 8 | 4 8 5 Class Distribution -------------------- 95% | Mutant 4% | Scavenger-Mutant Dominant Class ---------------- Mutant | -10/Materials Mutant | -9/Materials Resources | -11 -10 -9 ----------- Run | Yrd Mat Mat Matter Collected 364 | 230 70 64 Remotely . | . . . Salvage Created 652 | . 196 456 Parts 45 | . 14 31 Haulers Intercepted 2 | . 1 1 Recyclers Shooed 1 | . . 1 Parts Field Recycled . | . . . Retrieved Matter . | . . . Parts Self-Destructed . | . . . Prevented . | . . . Parts Restored . | . . . Kills | -11 -10 -9 ------- Run | Yrd Mat Mat Combat Hostiles Destroyed 17 | . 3 14 Guns 15 | . 3 12 Classes Destroyed 6 | . 3 3 Worker 2 | . . 2 Hauler 2 | . 1 1 Watcher 1 | . 1 . Swarmer 9 | . . 9 Grunt 7 | . 3 4 Sentry 1 | . . 1 Best Kill Streak 7 | . 2 7 Combat Bots Only 6 | . 2 6 Max Kills in Single Turn 2 | . 1 2 Gunslinging . | . . . Exploded . | . . . Melee . | . . . Uniques/NPCs Destroyed . | . . . Combat | -11 -10 -9 -------- Run | Yrd Mat Mat Hostile Shots Fired 181 | . 10 171 Missed 54 | . 5 49 Hits 127 | . 5 122 Projectile 127 | . 5 122 Critical Strikes 3 | . . 3 Damage Taken 1543 | . 56 1487 Core 426 | . 22 404 Absorbed by Shields . | . . . Redirected to Shielding 53 | . . 53 Core Remaining (%) 95 | 100 91 . Volleys Fired 65 | . 19 46 Largest 2 | . 2 2 Hottest 121 | . 115 121 Shots Fired 109 | . 35 74 Gun 109 | . 35 74 Cannon . | . . . Launcher . | . . . Special . | . . . Kinetic . | . . . Thermal 109 | . 35 74 Explosive . | . . . Electromagnetic . | . . . Robot Hit Streak 9 | . 9 7 Robot Miss Streak 4 | . 3 4 Penetration Max . | . . . Secondary Targets 3 | . 1 2 Max Gunslinging Chain 1 | . 1 1 Shots Hit Robots 66 | . 20 46 Core Hits 28 | . 10 18 Critical Kills . | . . . Critical Parts Destroyed . | . . . Critical Strikes 5 | . 1 4 Burn 5 | . 1 4 Melee Attacks . | . . . Impact . | . . . Slashing . | . . . Piercing . | . . . Sneak Attacks . | . . . Combat Hostiles . | . . . Follow-up Attacks . | . . . Damage Inflicted 1086 | . 295 791 Guns 1073 | . 282 791 Cannons . | . . . Explosions . | . . . Melee . | . . . Ramming 13 | . 13 . Kinetic . | . . . Thermal 1073 | . 282 791 Explosive . | . . . Electromagnetic . | . . . Impact . | . . . Slashing . | . . . Piercing . | . . . Highest Corruption . | . . . Average Corruption . | . . . Corruption Purged . | . . . Corruption Blocked . | . . . Overload Shots . | . . . Overflow Damage . | . . . Projectiles . | . . . Explosions . | . . . Melee . | . . . Knockbacks . | . . . Impact . | . . . Kinetic . | . . . Secondary . | . . . Self-Inflicted Damage . | . . . Shots . | . . . Rammed 1 | . . 1 Targets Rammed 2 | . 1 1 Kicked 1 | . 1 . Crushed . | . . . Highest Temperature 372 | . 162 372 Average Temperature 98 | . 51 121 Received Heat Transfer 459 | . 30 429 Siege Activations . | . . . Martial Activations . | . . . Shielding Activations . | . . . Robots Disrupted . | . . . Combat Hostiles . | . . . Robots Corrupted . | . . . Combat Hostiles . | . . . Parts Fried . | . . . Impact Corruptions . | . . . Robots Melted 2 | . . 2 Combat Hostiles 2 | . . 2 Parts Melted 8 | . 2 6 Heat Transferred 3071 | . 851 2220 Parts Sabotaged . | . . . Parts Stolen . | . . . Parts Stripped . | . . . Power Chain Reactions . | . . . Alert | -11 -10 -9 ------- Run | Yrd Mat Mat Maximum Alert Level . | . . . Low Security (%) 100 | 100 100 100 Level 1 . | . . . Level 2 . | . . . Level 3 . | . . . Level 4 . | . . . Level 5 . | . . . High Security . | . . . Max Security . | . . . Peak Influence 126 | . 50 126 Initial . | . . . Average 17 | . 6 24 Influence Increases 474 | . 96 378 Destroy 0b10 Robot/C 340 | . 60 280 Destroy 0b10 Robot/NC 25 | . 10 15 Destroy Leader 66 | . 14 52 Successful Hack 12 | . 12 . Destroy Structure 1 | . . 1 Lose Combat Pursuer 30 | . . 30 Influence Decreases 428 | . 96 332 Time Decay 313 | . 96 217 Lost Part 115 | . . 115 Squads Dispatched 1 | . . 1 Investigation 1 | . . 1 Extermination . | . . . Reinforcement . | . . . Assault . | . . . Garrison . | . . . Intercept . | . . . Searches Triggered . | . . . Construction Impeded . | . . . Haulers Reinforced . | . . . Active Scanning Responses . | . . . Cargo Convoy Interrupts . | . . . Stealth | -11 -10 -9 --------- Run | Yrd Mat Mat Distress Signals 2 | . . 2 Communications Jammed . | . . . Distress Signals . | . . . Times Spotted 27 | . 6 21 Peak Tracking Total 5 | . 2 5 Tactical Retreats 1 | . . 1 Traps | -11 -10 -9 ------- Run | Yrd Mat Mat Traps Triggered 2 | . . 2 Indirectly . | . . . Trap Hack Attempts . | . . . Triggered . | . . . Disarmed . | . . . Reprogrammed . | . . . Reused . | . . . Traps Extracted . | . . . Installed . | . . . Triggered . | . . . Machines | -11 -10 -9 ---------- Run | Yrd Mat Mat Machines Disabled . | . . . Max in Single Turn . | . . . Machines Repaired . | . . . Machines Dismantled . | . . . Machines Sabotaged . | . . . Overloaded Fab Kills . | . . . Hacking | -11 -10 -9 --------- Run | Yrd Mat Mat Machines Accessed 3 | . 2 1 Terminals 2 | . 2 . Fabricators . | . . . Repair Stations . | . . . Recycling Units . | . . . Scanalyzers 1 | . . 1 Garrison Access . | . . . Total Hacks 10 | . 6 4 Successful 6 | . 3 3 Failed 4 | . 3 1 Catastrophic 1 | . 1 . Database Lockouts . | . . . Manual . | . . . Terminals 6 | . 6 . Fabricators . | . . . Repair Stations . | . . . Recycling Units . | . . . Scanalyzers 4 | . . 4 Garrison Access . | . . . Terminal Hacks 3 | . 3 . Record 1 | . 1 . Robot Analysis 1 | . 1 . Emergency Access Points 1 | . 1 . Fabricator Hacks . | . . . Repair Station Hacks . | . . . Recycling Unit Hacks . | . . . Scanalyzer 3 | . . 3 Insert Component 1 | . . 1 Analyze 1 | . . 1 Retrieve Study 1 | . . 1 Garrison Access Hacks . | . . . Unauthorized Hacks . | . . . Terminals . | . . . Fabricators . | . . . Repair Stations . | . . . Recycling Units . | . . . Scanalyzers . | . . . Garrison Access . | . . . Data Cores Recovered . | . . . Used . | . . . Hacking Detections 3 | . 2 1 Full Trace Events 1 | . . 1 Feedback Events . | . . . Feedback Blocked . | . . . Robot Schematics Acquired . | . . . Robots Built . | . . . Authchips . | . . . Time . | . . . Total Robot Build Rating . | . . . Part Schematics Acquired 1 | . . 1 Parts Built . | . . . Authchips . | . . . Time . | . . . Total Part Build Rating . | . . . Part Studies Acquired 1 | . . 1 Parts Repaired . | . . . Time . | . . . Parts Recycled . | . . . Recycled Matter . | . . . Retrieved Matter . | . . . Retrieved Components . | . . . Parts Scanalyzed 1 | . . 1 Part Schematics Acquired 1 | . . 1 Parts Damaged . | . . . Bothacking | -11 -10 -9 ------------ Run | Yrd Mat Mat Used RIF Installer . | . . . Robots Hacked . | . . . Non-combat . | . . . Combat . | . . . Robot Hacks Applied . | . . . Relay Couplers Released . | . . . Fabnet Peak Effective % . | . . . Robots Rewired . | . . . Allies Hacked . | . . . Hacks Repelled . | . . . Allies | -11 -10 -9 -------- Run | Yrd Mat Mat Total Allies . | . . . Largest Group . | . . . Highest-Rated Group . | . . . Highest-Rated Ally . | . . . Total Orders . | . . . Ally Attacks . | . . . Total Damage . | . . . Kills . | . . . Allies Corrupted . | . . . Allies Melted . | . . . Intel | -11 -10 -9 ------- Run | Yrd Mat Mat Active Infowar (turns) 34 | . 1 33 Seismic 33 | . . 33 T.N.C. 1 | . 1 . Robot Analysis Total 1 | . 1 . Derelict Logs Recovered . | . . . Drone Launches . | . . . Drone Recoveries . | . . . Exploration | -11 -10 -9 ------------- Run | Yrd Mat Mat Turns Passed 1691 | 65 576 1050 Spaces Moved 418 | 36 198 184 Core 9 | 4 . 5 Treads . | . . . Legs 409 | 32 198 179 Wheels . | . . . Hover . | . . . Flight . | . . . Fastest Speed 50 | 50 120 385 Average Speed 347 | 138 254 487 Slowest Speed 610 | 190 400 610 Overloaded Moves . | . . . Propulsion Burnouts . | . . . Robots Hopped . | . . . Potential Cave-ins . | . . . Cave-ins Triggered . | . . . Exploration Rate (%) 18 | 3 32 21 Regions Visited 2 Branch Regions . Pre-discovered Areas . | . . . Known Exits Taken . | . . . Unknown Exits Taken 2 | 1 1 . Scrap Searched . | . . . Spaces Dug . | . . . Terrain Destroyed . | . . . Melee . | . . . Projectile . | . . . AOE . | . . . Terrain Rammed . | . . . Walls Destroyed . | . . . Machines Disabled . | . . . Actions | -11 -10 -9 --------- Run | Yrd Mat Mat Total 542 | 51 234 257 Wait 8 | . . 8 Move 416 | 35 197 184 Hop . | . . . Pick Up 26 | 10 9 7 Fast Attach . | . . . Attach 17 | 6 1 10 Detach . | . . . Swap 5 | . 4 1 Drop 3 | . 3 . Fire 65 | . 19 46 Melee . | . . . Ram 1 | . . 1 Kick 1 | . 1 . Crush . | . . . Escape Stasis . | . . . Rewire . | . . . Trap . | . . . Miscellaneous . | . . . Route ------- -11/Scrapyard -10/Materials -9/Materials History --------- Turn | Location | Event 42 | -11/Scrapyard | Discovered new exit (range 15) 66 | -11/Scrapyard | Entered Materials 305 | -10/Materials | Build established: Mutant 618 | -10/Materials | Discovered new exit (range 5) 642 | -10/Materials | Entered another Materials area 642 | -9/Materials | Evolved 2 slots: Power x1, Utility x1 1640 | -9/Materials | Core integrity fell below 50% 1678 | -9/Materials | Core integrity fell below 20% 1688 | -9/Materials | Lost 10 parts (2p2n3u3w) 1692 | -9/Materials | Destroyed by Y-45 Defender with Beam Rifle Last Messages --------------- Imp. Aluminum Leg destroyed. K-01 Serf cleans the Electrolysis Chamber. S-10 Pest destroyed. K-01 Serf cleans the Electrolysis Chamber. Seismic Detector destroyed. K-01 Serf collects debris. K-01 Serf cleans the Electrolysis Chamber. R-06 Scavenger collects Wheel. Imp. Medium Laser destroyed. K-01 Serf collects debris. R-06 Scavenger collects Lgt. Ion Engine. R-06 Scavenger collects Flight Unit. R-06 Scavenger collects Prototype Flight Unit. Critical hit (Burn: +37). K-01 Serf collects debris. Slammed into K-01 Serf. K-01 Serf collects debris. Acquired 23 matter. Critical hit (Burn: +37). K-01 Serf collects debris. Map ----- +----------------------------------------------------+ | ???# #####+## # #??????# #???# | | ???# #??# # #####+##??????# #???# | | ???# #??# + ##??????#% #???# | | ???# #??# ####### ##??????# ##### | | ???# #??# #??# # %##??????+ | | ???# #??# #??#### #?????? # | | ???######??# #?????# #?????? # | | ???????????# #######+## ######### | | ???????????##### + | | ???????????????# # | | ???????????????# # T """ """ " | | ???????????????# # """ " | | ???????????????# + """ ""? | | ???????????????# # ^ | | ???????????????# # ^ | | ???????????????# # """ """ ? | | ???????????????# # """ """ " ???? | | ???????????????########## "" """ """?????? ? | | ????????????????????????# k ????????? | | ????????????????????????# ????????? | | ????????????????????????# ????????? | | ????????????????????????# ######## ????????? | | ????????????????????????# #????????????????????? | | ????????????????????????# #????????????????????? | | ????????????????????????#%% #????????????????????? | | ????????????????????????#@ %#????????????????????? | | ???????????????????????*=![=#????????????????????? | | ??????????????????????###%%*#????????????????????? | | ????????????????????????#]]=#????????????????????? | | ????????????????????????#%= #????????????????????? | | ????????????????????????#=% #????????????????????? | | ????????????????????????# =%#????????????????????? | | ???????????????????????? Y ????????????????????? | | ???????????????????????? ????????????????????? | | ???????????????????????? ???????????????????? | | ???????????????????????? ???????????????????? | | ???????????????????????? #???????????????????? | | ????????????????????????##+###???????????????????? | | ?????????????????????????????????????????????????? | | ?????????????????????????????????????????????????? | | ?????????????????????????????????????????????????? | | ?????????????????????????????????????????????????? | | ?????????????????????????????????????????????????? | | ?????????????????????????????????????????????????? | | ?????????????????????????????????????????????????? | | ?????????????????????????????????????????????????? | | ?????????????????????????????????????????????????? | | ?????????????????????????????????????????????????? | | ?????????????????????????????????????????????????? | | ?????????????????????????????????????????????????? | +----------------------------------------------------+ Best States ------------- Heat Dissipation 42 Energy Generation 19 Energy Capacity 310 Matter Stores 300 Matter Capacity 300 Sight Range 16 Terrain Scan Density 10 Additional Mass Support 6 Weapon Shielding 33 Evasion (%) 55 Item Schematics ----------------- Aluminum Leg | -9/Materials | Scanalyzed Robot Schematics ------------------ None Fabricated ------------ Nothing Repaired ---------- Nothing Studied --------- Aluminum Leg | -9/Materials | Hacked Alien Tech Used ----------------- None Achievements -------------- None Challenges ------------ None Game ------ Seed WeaponsPhasingGun Manual? 0 Play Time 00:15:03 Cumulative 20.1 hours Start 2026.02.25 @ 06:10:48 End 2026.02.25 @ 06:24:01 Sessions 1 Manual Loads 0 Difficulty Rogue Special Mode None Game No. 37 Rogue 37 Adventurer 0 Explorer 0 Win Type - Total 0 Types 0/0/0/0/0/0/0/0/0/0 Lore% 9 Gallery% 19 Achievement% 13 Wizard Run 0 Options --------- Layout 1 ASCII 0 Keyboard 0 Movement Numpad Keybinds 0 Fullscreen 1 Font 32/SmallcapsGlow Map View 50x35 Zoom Use 0% Tactical HUD 0 Map Filters NONE Filters NONE Steam 1 RUN: 78cc16e7-299f-4ec8-841f-ed5e4b31f047